fUST/lending_fUST_20260101
["ID","MTS","AMOUNT","RATE_DAILY","PERIOD"]
[400236201,1767210642082,-765.67,0.00023287,2]
[400236202,1767210642091,-500.0,0.00023287,2]
[400236204,1767210642100,-500.0,0.00023287,2]
[400236206,1767210642110,-744.69,0.00023287,2]
[400236208,1767210642119,-823.28,0.00023287,2]
[400236210,1767210642128,-2254.25,0.00023287,2]
[400236212,1767210642138,-286.68717992,0.00023287,2]
[400236214,1767210642147,-1192.3,0.000233,14]
[400236216,1767210642156,-500.0,0.00023561,2]
[400236218,1767210642167,-500.0,0.00023561,2]
[400236220,1767210642176,-500.0,0.00023561,2]
[400236222,1767210642186,-925.91156577,0.00023561,2]
[400236224,1767210642196,-6371.35,0.00023561,2]
[400236226,1767210642206,-739.54,0.00023561,2]
[400236228,1767210642215,-500.0,0.00023561,2]
[400236230,1767210642225,-2203.3,0.00023561,2]
[400236232,1767210642237,-8989.4,0.00023561,2]
[400236234,1767210642247,-500.0,0.00023561,2]
[400236236,1767210642258,-700.98,0.00023561,2]
[400236238,1767210642268,-502.72,0.00023561,2]
[400236240,1767210642278,-872.28,0.00023561,2]
[400236242,1767210642288,-500.0,0.00023561,2]
[400236244,1767210642298,-765.67,0.00023561,2]
[400236245,1767210642307,-500.0,0.00023561,2]
[400236247,1767210642316,-500.0,0.00023561,2]
[400236249,1767210642326,-744.69,0.00023561,2]
[400236251,1767210642335,-823.28,0.00023561,2]
[400236253,1767210642344,-2254.25,0.00023561,2]
[400236255,1767210642354,-4125.91,0.00023585,2]
[400236257,1767210642363,-273.14635778,0.00023835,2]
[400236259,1767210642372,-424.87900291,0.00023835,2]
[400236261,1767210642382,-500.0,0.00023835,2]
[400236263,1767210642392,-925.91156577,0.00023835,2]
[400236265,1767210642401,-6371.35,0.00023835,2]
[400236267,1767210642410,-739.54,0.00023835,2]
[400236269,1767210642420,-500.0,0.00023835,2]
[400236271,1767210642429,-2203.3,0.00023835,2]
[400236273,1767210642439,-8989.4,0.00023835,2]
[400236275,1767210642448,-549.83481305,0.00023835,2]
[400236277,1767210642459,-700.98,0.00023835,2]
[400236279,1767210642469,-502.72,0.00023835,2]
[400236281,1767210642478,-872.28,0.00023835,2]
[400236283,1767210642487,-500.0,0.00023835,2]
[400236285,1767210642496,-765.67,0.00023835,2]
[400236287,1767210642506,-500.0,0.00023835,2]
[400236289,1767210642515,-500.0,0.00023835,2]
[400236290,1767210642525,-744.69,0.00023835,2]
[400236292,1767210642534,-823.28,0.00023835,2]
[400236294,1767210642543,-2254.25,0.00023835,2]
[400236295,1767210642553,-921.25637527,0.000239,2]
[400236296,1767210642562,-921.25637526,0.000239,2]
[400236297,1767210642572,-921.25637526,0.000239,2]
[400236298,1767210642582,-921.25637526,0.000239,2]
[400236299,1767210642591,-921.25637526,0.000239,2]
[400236300,1767210642601,-921.25637526,0.000239,2]
[400236301,1767210642610,-921.25637526,0.000239,2]
[400236302,1767210642619,-11912.51,0.000239,2]
[400236303,1767210642629,-500.0,0.00024109,2]
[400236304,1767210642638,-925.91156577,0.00024109,2]
[400236305,1767210642648,-6371.35,0.00024109,2]
[400236306,1767210642657,-739.54,0.00024109,2]
[400236307,1767210642667,-500.0,0.00024109,2]
[400236308,1767210642676,-2203.3,0.00024109,2]
[400236309,1767210642685,-8989.4,0.00024109,2]
[400236310,1767210642695,-700.98,0.00024109,2]
[400236311,1767210642704,-502.72,0.00024109,2]
[400236312,1767210642714,-872.28,0.00024109,2]
[400236313,1767210642723,-500.0,0.00024109,2]
[400236314,1767210642733,-765.67,0.00024109,2]
[400236315,1767210642742,-500.0,0.00024109,2]
[400236316,1767210642752,-210.73467929,0.00024109,2]
[400236317,1767210642761,-744.69,0.00024109,2]
[400236318,1767210642771,-823.28,0.00024109,2]
[400236319,1767210642780,-2254.25,0.00024109,2]
[400236320,1767210642790,-159.0,0.00024164,12]
[400236321,1767210642800,-626.65231486,0.00024299,2]
[400236322,1767210642810,-500.0,0.00024383,2]
[400236323,1767210642819,-925.91156577,0.00024383,2]
[400236324,1767210642828,-6371.35,0.00024383,2]
[400236325,1767210642838,-739.54,0.00024383,2]
[400236327,1767210642857,-500.0,0.00024383,2]
[400236328,1767210642866,-2203.3,0.00024383,2]
[400236329,1767210642876,-8989.4,0.00024383,2]
[400236330,1767210642885,-700.98,0.00024383,2]
[400236332,1767210642895,-502.72,0.00024383,2]
[400236334,1767210642904,-872.28,0.00024383,2]
[400236336,1767210642914,-500.0,0.00024383,2]
[400236338,1767210642923,-765.67,0.00024383,2]
[400236340,1767210642932,-500.0,0.00024383,2]
[400236342,1767210642941,-744.69,0.00024383,2]
[400236344,1767210642950,-823.28,0.00024383,2]
[400236346,1767210642959,-2254.25,0.00024383,2]
[400236347,1767210642969,-921.25637526,0.0002452,2]
[400236348,1767210642979,-2000.0,0.00024651,7]
[400236349,1767210642988,-500.0,0.00024657,2]
[400236350,1767210642997,-925.91156577,0.00024657,2]
[400236351,1767210643007,-6371.35,0.00024657,2]
[400236352,1767210643016,-739.54,0.00024657,2]
[400236353,1767210643026,-500.0,0.00024657,2]
[400236354,1767210643036,-2203.3,0.00024657,2]
[400236355,1767210643045,-8989.4,0.00024657,2]
[400236356,1767210643184,-700.98,0.00024657,2]
[400236357,1767210643193,-502.72,0.00024657,2]
[400236358,1767210643203,-872.28,0.00024657,2]
[400236359,1767210643213,-500.0,0.00024657,2]
[400236360,1767210643222,-765.67,0.00024657,2]
[400236361,1767210643235,-500.0,0.00024657,2]
[400236362,1767210643244,-744.69,0.00024657,2]
[400236363,1767210643253,-823.28,0.00024657,2]
[400236364,1767210643263,-2254.25,0.00024657,2]
[400236365,1767210643272,-380.0,0.00024658,2]
[400236366,1767210643283,-960.06601762,0.00024726,2]
[400236367,1767210643292,-3147.76375777,0.00024763,2]
[400236368,1767210643302,-195.59,0.000248,7]
[400236369,1767210643312,-203.0,0.00024863,2]
[400236370,1767210643321,-169.9,0.000249,2]
[400236371,1767210643331,-371114.733813,0.000249,2]
[400236372,1767210643340,-500.0,0.00024931,2]
[400236373,1767210643349,-925.91156577,0.00024931,2]
[400236374,1767210643359,-6371.35,0.00024931,2]
[400236375,1767210643368,-739.54,0.00024931,2]
[400236376,1767210643377,-500.0,0.00024931,2]
[400236377,1767210643387,-2203.3,0.00024931,2]
[400236378,1767210643397,-8989.4,0.00024931,2]
[400236379,1767210643406,-700.98,0.00024931,2]
[400236380,1767210643415,-502.72,0.00024931,2]
[400236381,1767210643426,-872.28,0.00024931,2]
[400236382,1767210643435,-500.0,0.00024931,2]
[400236383,1767210643444,-765.67,0.00024931,2]
[400236384,1767210643454,-500.0,0.00024931,2]
[400236385,1767210643464,-744.69,0.00024931,2]
[400236386,1767210643474,-823.28,0.00024931,2]
[400236387,1767210643483,-2254.25,0.00024931,2]
[400236388,1767210643493,-159.4639658,0.00025,2]
[400236389,1767210643502,-114455.71073726,0.00025,2]
[400236390,1767210643512,-500.0,0.00025205,2]
[400236391,1767210643521,-925.91156577,0.00025205,2]
[400236392,1767210643530,-6371.35,0.00025205,2]
[400236393,1767210643540,-739.54,0.00025205,2]
[400236394,1767210643549,-500.0,0.00025205,2]
[400236395,1767210643558,-2203.3,0.00025205,2]
[400236396,1767210643567,-8989.4,0.00025205,2]
[400236397,1767210643577,-700.98,0.00025205,2]
[400236398,1767210643586,-502.72,0.00025205,2]
[400236399,1767210643596,-872.28,0.00025205,2]
[400236400,1767210643606,-500.0,0.00025205,2]
[400236401,1767210643616,-765.67,0.00025205,2]
[400236402,1767210643626,-744.69,0.00025205,2]
[400236403,1767210643635,-823.28,0.00025205,2]
[400236404,1767210643645,-2254.25,0.00025205,2]
[400236405,1767210643654,-169.550149,0.00025342,2]
[400236406,1767210643663,-500.0,0.00025479,2]
[400236407,1767210643673,-925.91156577,0.00025479,2]
[400236408,1767210643684,-6371.35,0.00025479,2]
[400236410,1767210643693,-739.54,0.00025479,2]
[400236412,1767210643703,-500.0,0.00025479,2]
[400236413,1767210643713,-2203.3,0.00025479,2]
[400236415,1767210643722,-8989.4,0.00025479,2]
[400236417,1767210643732,-700.98,0.00025479,2]
[400236418,1767210643741,-502.72,0.00025479,2]
[400236419,1767210643751,-872.28,0.00025479,2]
[400236420,1767210643761,-500.0,0.00025479,2]
[400236421,1767210643771,-765.67,0.00025479,2]
[400236422,1767210643780,-744.69,0.00025479,2]
[400236423,1767210643789,-823.28,0.00025479,2]
[400236424,1767210643798,-2254.25,0.00025479,2]
[400236425,1767210643808,-500.0,0.00025753,2]
[400236426,1767210643818,-925.91156577,0.00025753,2]
[400236427,1767210643827,-6371.35,0.00025753,2]
[400236428,1767210643837,-739.54,0.00025753,2]
[400236429,1767210643847,-500.0,0.00025753,2]
[400236430,1767210643856,-2203.3,0.00025753,2]
[400236431,1767210643866,-8989.4,0.00025753,2]
[400236432,1767210643877,-700.98,0.00025753,2]
[400236433,1767210643887,-502.72,0.00025753,2]
[400236434,1767210643897,-872.28,0.00025753,2]
[400236435,1767210643906,-500.0,0.00025753,2]
[400236436,1767210643916,-765.67,0.00025753,2]
[400236437,1767210643926,-744.69,0.00025753,2]
[400236438,1767210643935,-823.28,0.00025753,2]
[400236439,1767210643944,-2254.25,0.00025753,2]
[400236440,1767210643953,-161.0,0.00025808,18]
[400236441,1767210643963,-1192.3,0.000259,14]
[400236442,1767210643972,-4951.1,0.00025943,2]
[400236443,1767210643981,-500.0,0.00026027,2]
[400236444,1767210643991,-925.91156577,0.00026027,2]
[400236445,1767210644000,-6371.35,0.00026027,2]
[400236446,1767210644010,-739.54,0.00026027,2]
[400236447,1767210644020,-500.0,0.00026027,2]
[400236448,1767210644029,-2203.3,0.00026027,2]
[400236449,1767210644039,-8989.4,0.00026027,2]
[400236450,1767210644048,-700.98,0.00026027,2]
[400236451,1767210644058,-502.72,0.00026027,2]
[400236452,1767210644067,-872.28,0.00026027,2]
[400236453,1767210644077,-500.0,0.00026027,2]
[400236454,1767210644087,-765.67,0.00026027,2]
[400236455,1767210644097,-744.69,0.00026027,2]
[400236456,1767210644107,-823.28,0.00026027,2]
[400236457,1767210644116,-2254.25,0.00026027,2]
[400236458,1767210644126,-11912.51,0.000261,2]
[400236459,1767210644135,-3147.76375777,0.00026136,2]
[400236460,1767210644145,-921.25637526,0.00026191,2]
[400236461,1767210644155,-680.88184211,0.00026299,2]
[400236462,1767210644164,-500.0,0.00026301,2]
[400236463,1767210644175,-925.91156577,0.00026301,2]
[400236464,1767210644184,-6371.35,0.00026301,2]
[400236465,1767210644193,-739.54,0.00026301,2]
[400236466,1767210644203,-500.0,0.00026301,2]
[400236467,1767210644213,-2203.3,0.00026301,2]
[400236468,1767210644223,-8989.4,0.00026301,2]
[400236469,1767210644234,-700.98,0.00026301,2]
[400236470,1767210644244,-502.72,0.00026301,2]
[400236471,1767210644254,-872.28,0.00026301,2]
[400236472,1767210644264,-500.0,0.00026301,2]
[400236473,1767210644273,-765.67,0.00026301,2]
[400236474,1767210644283,-744.69,0.00026301,2]
[400236475,1767210644292,-823.28,0.00026301,2]
[400236476,1767210644302,-2254.25,0.00026301,2]
[400236477,1767210644311,-1000.0,0.00026351,2]
[400236478,1767210644321,-1000.0,0.00026351,2]
[400236479,1767210644330,-1000.0,0.00026351,2]
[400236480,1767210644340,-1000.0,0.00026351,2]
[400236481,1767210644348,-1000.0,0.00026351,2]
[400236482,1767210644358,-1000.0,0.00026351,2]
[400236483,1767210644366,-1000.0,0.00026351,2]
[400236484,1767210644376,-1000.0,0.00026351,2]
[400236485,1767210644385,-1000.0,0.00026351,2]
[400236486,1767210644394,-1000.0,0.00026351,2]
[400236487,1767210644403,-1000.0,0.00026351,2]
[400236488,1767210644413,-1000.0,0.00026351,2]
[400236489,1767210644422,-1000.0,0.00026351,2]
[400236490,1767210644432,-299.0,0.00026531,2]
[400236491,1767210644441,-500.0,0.00026575,2]
[400236492,1767210644450,-925.91156577,0.00026575,2]
[400236493,1767210644459,-6371.35,0.00026575,2]
[400236494,1767210644469,-739.54,0.00026575,2]
[400236495,1767210644479,-500.0,0.00026575,2]
[400236496,1767210644489,-2203.3,0.00026575,2]
[400236497,1767210644498,-8989.4,0.00026575,2]
[400236498,1767210644509,-700.98,0.00026575,2]
[400236499,1767210644518,-502.72,0.00026575,2]
[400236500,1767210644528,-872.28,0.00026575,2]
[400236501,1767210644538,-500.0,0.00026575,2]
[400236502,1767210644548,-765.67,0.00026575,2]
[400236503,1767210644558,-744.69,0.00026575,2]
[400236504,1767210644568,-823.28,0.00026575,2]
[400236505,1767210644578,-2254.25,0.00026575,2]
[400236506,1767210644587,-1973.55132122,0.00026621,2]
[400236507,1767210644596,-203.0,0.00026654,2]
[400236508,1767210644607,-359.0,0.00026763,2]
[400236509,1767210644616,-500.0,0.00026849,2]
[400236510,1767210644625,-925.91156577,0.00026849,2]
[400236511,1767210644635,-6371.35,0.00026849,2]
[400236512,1767210644644,-739.54,0.00026849,2]
[400236514,1767210644653,-500.0,0.00026849,2]
[400236516,1767210644662,-2203.3,0.00026849,2]
[400236518,1767210644671,-8989.4,0.00026849,2]
[400236520,1767210644680,-700.98,0.00026849,2]
[400236522,1767210644690,-502.72,0.00026849,2]
[400236523,1767210644699,-872.28,0.00026849,2]
[400236524,1767210644708,-500.0,0.00026849,2]
[400236525,1767210644718,-765.67,0.00026849,2]
[400236526,1767210644727,-744.69,0.00026849,2]
[400236527,1767210644736,-823.28,0.00026849,2]
[400236528,1767210644745,-2254.25,0.00026849,2]
[400236529,1767210644753,-84586.6906165,0.00027016,2]
[400236530,1767210644762,-419.0,0.00027055,2]
[400236531,1767210644771,-500.0,0.00027123,2]
[400236532,1767210644781,-925.91156577,0.00027123,2]
[400236533,1767210644790,-6371.35,0.00027123,2]
[400236534,1767210644799,-739.54,0.00027123,2]
[400236535,1767210644808,-286.39883318,0.00027123,2]
[400236536,1767210644818,-2203.3,0.00027123,2]
[400236537,1767210644827,-8989.4,0.00027123,2]
[400236538,1767210644842,-700.98,0.00027123,2]
[400236539,1767210644851,-502.72,0.00027123,2]
[400236540,1767210644861,-872.28,0.00027123,2]
[400236541,1767210644870,-500.0,0.00027123,2]
[400236542,1767210644879,-765.67,0.00027123,2]
[400236543,1767210644889,-744.69,0.00027123,2]
[400236544,1767210644898,-823.28,0.00027123,2]
[400236545,1767210644907,-2254.25,0.00027123,2]
[400236546,1767210644916,-431.71,0.00027397,2]
[400236547,1767210644925,-925.91156577,0.00027397,2]
[400236548,1767210644935,-6371.35,0.00027397,2]
[400236549,1767210644945,-739.54,0.00027397,2]
[400236550,1767210644954,-2203.3,0.00027397,2]
[400236551,1767210644963,-8989.4,0.00027397,2]
[400236552,1767210644972,-700.98,0.00027397,2]
[400236553,1767210644981,-502.72,0.00027397,2]
[400236554,1767210644991,-872.28,0.00027397,2]
[400236555,1767210645000,-500.0,0.00027397,2]
[400236556,1767210645009,-765.67,0.00027397,2]
[400236557,1767210645019,-744.69,0.00027397,2]
[400236558,1767210645028,-823.28,0.00027397,2]
[400236559,1767210645038,-2254.25,0.00027397,2]
[400236560,1767210645047,-299.0,0.00027397,2]
[400236561,1767210645056,-299.0,0.00027397,2]
[400236562,1767210645065,-299.0,0.00027397,2]
[400236563,1767210645075,-299.0,0.00027397,2]
[400236564,1767210645084,-299.0,0.00027397,2]
[400236565,1767210645094,-299.0,0.00027397,2]
[400236566,1767210645103,-299.0,0.00027397,2]
[400236567,1767210645112,-299.0,0.00027397,2]
[400236568,1767210645121,-299.0,0.00027397,2]
[400236569,1767210645131,-299.0,0.00027397,2]
[400236570,1767210645140,-299.0,0.00027397,2]
[400236571,1767210645149,-299.0,0.00027397,2]
[400236572,1767210645159,-299.0,0.00027397,2]
[400236573,1767210645168,-299.0,0.00027397,2]
[400236574,1767210645177,-299.0,0.00027397,2]
[400236575,1767210645187,-299.0,0.00027397,2]
[400236576,1767210645196,-299.0,0.00027397,2]
[400236577,1767210645205,-299.0,0.00027397,2]
[400236578,1767210645214,-299.0,0.00027397,2]
[400236579,1767210645223,-299.0,0.00027397,2]
[400236580,1767210645235,-299.0,0.00027397,2]
[400236581,1767210645244,-299.0,0.00027397,2]
[400236582,1767210645254,-299.0,0.00027397,2]
[400236583,1767210645263,-299.0,0.00027397,2]
[400236584,1767210645272,-299.0,0.00027397,2]
[400236585,1767210645283,-299.0,0.00027397,2]
[400236586,1767210645292,-299.0,0.00027397,2]
[400236587,1767210645301,-299.0,0.00027397,2]
[400236588,1767210645311,-299.0,0.00027397,2]
[400236589,1767210645320,-299.0,0.00027397,2]
[400236590,1767210645329,-299.0,0.00027397,2]
[400236591,1767210645338,-299.0,0.00027397,2]
[400236592,1767210645347,-500.65812564,0.00027397,5]
[400236593,1767210645356,-150.58382148,0.00027397,5]
[400236594,1767210645365,-150.0,0.00027397,5]
[400236595,1767210645374,-191.0,0.00027452,24]
[400236596,1767210645384,-169.9,0.000275,2]
[400236597,1767210645393,-3147.76375777,0.00027508,2]
[400236598,1767210645402,-925.91156577,0.00027671,2]
[400236599,1767210645411,-6371.35,0.00027671,2]
[400236600,1767210645421,-739.54,0.00027671,2]
[400236601,1767210645430,-2203.3,0.00027671,2]
[400236602,1767210645439,-8989.4,0.00027671,2]
[400236603,1767210645448,-700.98,0.00027671,2]
[400236605,1767210645457,-502.72,0.00027671,2]
[400236606,1767210645467,-872.28,0.00027671,2]
[400236608,1767210645476,-500.0,0.00027671,2]
[400236610,1767210645485,-765.67,0.00027671,2]
[400236611,1767210645495,-744.69,0.00027671,2]
[400236612,1767210645504,-823.28,0.00027671,2]
[400236613,1767210645513,-2254.25,0.00027671,2]
[400236614,1767210645523,-2000.0,0.00027721,7]
[400236615,1767210645532,-2000.0,0.00027751,7]
[400236616,1767210645541,-2000.0,0.0002776,7]
[400236617,1767210645550,-2000.0,0.00027769,7]
[400236618,1767210645559,-2000.0,0.00027778,7]
[400236619,1767210645568,-2000.0,0.00027787,7]
[400236620,1767210645577,-2000.0,0.00027795,7]
[400236621,1767210645586,-2000.0,0.00027804,7]
[400236622,1767210645596,-2000.0,0.00027813,7]
[400236623,1767210645605,-2000.0,0.00027822,7]
[400236624,1767210645615,-2000.0,0.00027831,7]
[400236625,1767210645624,-2000.0,0.00027839,7]
[400236626,1767210645633,-2000.0,0.00027848,7]
[400236627,1767210645643,-2000.0,0.00027857,7]
[400236628,1767210645652,-921.25637526,0.00027862,2]
[400236629,1767210645662,-2000.0,0.00027866,7]
[400236630,1767210645671,-2000.0,0.00027875,7]
[400236631,1767210645680,-2000.0,0.00027883,7]
[400236632,1767210645689,-2242.59364884,0.00027884,2]
[400236633,1767210645699,-2000.0,0.00027892,7]
[400236634,1767210645708,-1192.3,0.000279,14]
[400236635,1767210645717,-2000.0,0.00027901,7]
[400236636,1767210645726,-2000.0,0.0002791,7]
[400236637,1767210645735,-2000.0,0.00027919,7]
[400236638,1767210645744,-2000.0,0.00027927,7]
[400236639,1767210645753,-2000.0,0.00027936,7]
[400236640,1767210645763,-685.21033329,0.00027945,2]
[400236641,1767210645772,-1233.37859992,0.00027945,2]
[400236642,1767210645782,-2192.67306653,0.00027945,2]
[400236643,1767210645790,-452.740446,0.00027945,2]
[400236644,1767210645800,-814.93280279,0.00027945,2]
[400236645,1767210645809,-2000.0,0.00027945,7]
[400236646,1767210645906,-925.91156577,0.00027945,2]
[400236647,1767210645926,-6371.35,0.00027945,2]
[400236648,1767210645936,-739.54,0.00027945,2]
[400236649,1767210645945,-2203.3,0.00027945,2]
[400236650,1767210645954,-8989.4,0.00027945,2]
[400236651,1767210645963,-700.98,0.00027945,2]
[400236653,1767210645971,-502.72,0.00027945,2]
[400236654,1767210645980,-872.28,0.00027945,2]
[400236656,1767210645990,-542.49451985,0.00027945,2]
[400236657,1767210645999,-765.67,0.00027945,2]
[400236658,1767210646008,-744.69,0.00027945,2]
[400236659,1767210646017,-823.28,0.00027945,2]
[400236660,1767210646027,-2254.25,0.00027945,2]
[400236661,1767210646035,-152.36606131,0.00027945,5]
[400236662,1767210646045,-2000.0,0.00027954,7]
[400236663,1767210646054,-2000.0,0.00027963,7]
[400236664,1767210646064,-2000.0,0.00027971,7]
[400236665,1767210646073,-5000.0,0.00027978,14]
[400236666,1767210646083,-6464.62555377,0.00027979,19]
[400236667,1767210646093,-5000.0,0.00027979,13]
[400236668,1767210646102,-5000.0,0.00027979,17]
[400236669,1767210646111,-5000.0,0.00027979,16]
[400236670,1767210646121,-5000.0,0.00027979,17]
[400236671,1767210646130,-2000.0,0.0002798,7]
[400236672,1767210646139,-2220.6287671,0.00027987,2]
[400236673,1767210646148,-2000.0,0.00027989,7]
[400236674,1767210646157,-1041.66666667,0.0002799,7]
[400236675,1767210646166,-160.0,0.00027991,3]
[400236676,1767210646176,-11912.51,0.00028,2]
[400236677,1767210646185,-1041.66666667,0.00028,7]
[400236678,1767210646195,-1203.18233645,0.00028055,2]
[400236679,1767210646205,-2242.59364885,0.0002809,2]
[400236680,1767210646215,-926.16361748,0.00028219,2]
[400236681,1767210646224,-6371.53751312,0.00028219,2]
[400236682,1767210646237,-739.68395132,0.00028219,2]
[400236683,1767210646247,-2203.37123298,0.00028219,2]
[400236684,1767210646256,-8989.46097059,0.00028219,2]
[400236685,1767210646266,-701.2069689,0.00028219,2]
[400236686,1767210646275,-502.88225153,0.00028219,2]
[400236687,1767210646285,-872.39268095,0.00028219,2]
[400236688,1767210646294,-765.8274778,0.00028219,2]
[400236689,1767210646305,-744.81,0.00028219,2]
[400236690,1767210646315,-823.45895572,0.00028219,2]
[400236691,1767210646324,-2254.36978008,0.00028219,2]
[400236692,1767210646334,-5000.0,0.00028289,5]
[400236693,1767210646343,-151.371196,0.00028289,7]
[400236694,1767210646353,-151.0,0.00028289,7]
[400236695,1767210646362,-151.0,0.00028289,7]
[400236696,1767210646372,-151.0,0.00028289,7]
[400236697,1767210646381,-151.0,0.00028289,7]
[400236698,1767210646391,-254.736127,0.00028289,7]
[400236699,1767210646401,-151.0,0.00028289,7]
[400236700,1767210646410,-863.760546,0.00028289,7]
[400236701,1767210646420,-178.593012,0.00028289,2]
[400236702,1767210646429,-863.760546,0.00028289,7]
[400236703,1767210646439,-863.760546,0.00028289,7]
[400236704,1767210646447,-151.0,0.00028289,7]
[400236705,1767210646456,-863.760546,0.00028289,7]
[400236706,1767210646466,-5000.0,0.00028297,3]
[400236707,1767210646475,-496.47127164,0.00028297,3]
[400236708,1767210646484,-500.0,0.00028297,3]
[400236709,1767210646494,-514.84070869,0.00028297,3]
[400236710,1767210646503,-500.0,0.00028297,3]
[400236711,1767210646512,-533.88981491,0.00028297,3]
[400236712,1767210646521,-2398.4119403,0.00028297,3]
[400236713,1767210646530,-500.0,0.00028297,3]
[400236714,1767210646539,-553.64373807,0.00028297,3]
[400236715,1767210646548,-2487.15318209,0.00028297,3]
[400236716,1767210646558,-500.0,0.00028297,3]
[400236717,1767210646567,-574.12855637,0.00028297,3]
[400236718,1767210646576,-500.0,0.00028297,3]
[400236719,1767210646585,-2579.17784983,0.00028297,3]
[400236720,1767210646594,-500.0,0.00028297,3]
[400236721,1767210646603,-595.37131296,0.00028297,3]
[400236722,1767210646613,-500.0,0.00028297,3]
[400236723,1767210646623,-500.0,0.00028297,3]
[400236724,1767210646632,-2674.60743027,0.00028297,3]
[400236725,1767210646641,-617.40005154,0.00028297,3]
[400236726,1767210646651,-500.0,0.00028297,3]
[400236727,1767210646660,-640.24385345,0.00028297,3]
[400236728,1767210646670,-2773.56790519,0.00028297,3]
[400236729,1767210646679,-500.0,0.00028297,3]
[400236730,1767210646688,-500.0,0.00028297,3]
[400236731,1767210646698,-2876.18991768,0.00028297,3]
[400236732,1767210646707,-663.93287602,0.00028297,3]
[400236733,1767210646716,-500.0,0.00028297,3]
[400236734,1767210646726,-500.0,0.00028297,3]
[400236735,1767210646735,-2271.66553811,0.00028297,3]
[400236736,1767210646745,-500.0,0.00028297,3]
[400236737,1767210646754,-500.0,0.00028297,3]
[400236738,1767210646764,-500.0,0.00028297,3]
[400236739,1767210646773,-500.0,0.00028297,3]
[400236740,1767210646783,-500.0,0.00028297,3]
[400236741,1767210646792,-500.0,0.00028297,3]
[400236742,1767210646802,-500.0,0.00028297,3]
[400236743,1767210646811,-500.0,0.00028297,3]
[400236744,1767210646821,-713.97283296,0.00028297,3]
[400236745,1767210646831,-500.0,0.00028297,3]
[400236746,1767210646840,-516.509709,0.00028297,3]
[400236747,1767210646849,-740.38982778,0.00028297,3]
[400236748,1767210646859,-500.0,0.00028297,3]
[400236749,1767210646868,-767.7842514,0.00028297,3]
[400236750,1767210646879,-500.0,0.00028297,3]
[400236751,1767210646888,-796.19226871,0.00028297,3]
[400236752,1767210646897,-500.0,0.00028297,3]
[400236753,1767210646907,-160.0,0.00028297,3]
[400236754,1767210646916,-825.65138265,0.00028297,3]
[400236755,1767210646926,-500.0,0.00028297,3]
[400236756,1767210646936,-160.0,0.00028297,3]
[400236757,1767210646945,-500.0,0.00028297,3]
[400236758,1767210646955,-160.0,0.00028297,3]
[400236759,1767210646964,-160.0,0.00028297,3]
[400236760,1767210646974,-160.0,0.00028297,3]
[400236761,1767210646983,-151.0,0.00028297,3]
[400236762,1767210646993,-151.12503043,0.00028297,3]
[400236763,1767210647002,-151.0,0.00028297,3]
[400236764,1767210647014,-151.0,0.00028297,3]
[400236765,1767210647023,-151.0,0.00028297,3]
[400236766,1767210647032,-151.0,0.00028297,3]
[400236767,1767210647042,-151.0,0.00028297,3]
[400236768,1767210647052,-151.0,0.00028297,3]